bitfinex-derivatives/quotes_ETHF0:USTF0_20251009
["timestamp","ask_amount","ask_price","bid_price","bid_amount"]
[1760024506153,1.04558,4302.1,4301.5,3.8003]
[1760024506355,1.04562,4302.0,4301.5,3.8003]
[1760024506661,0.93047,4301.7,4301.5,3.2078]
[1760024506955,0.41827,4301.7,4301.5,3.2078]
[1760024507156,0.41827,4301.7,4301.5,4.7412]
[1760024507356,0.41827,4301.7,4301.6,1.5334]
[1760024512649,0.236,4301.9,4301.0,3.8003]
[1760024512650,0.41833,4301.1,4301.0,3.8003]
[1760024513252,0.41833,4301.1,4301.0,5.3337]
[1760024513459,0.235,4301.7,4301.6,1.5334]
[1760024514861,0.93052,4301.2,4301.0,3.2078]
[1760024515064,0.235,4301.1,4301.0,1.5334]
[1760024515357,0.235,4301.1,4300.4,3.2078]
[1760024515358,0.93057,4300.6,4300.4,3.2078]
[1760024515562,0.235,4300.5,4300.4,3.2078]
[1760024515964,0.235,4300.5,4300.4,4.7412]
[1760024516259,0.65337,4300.6,4300.5,2.1122]
[1760024519063,0.235,4300.8,4300.6,1.5334]
[1760024519367,0.41836,4300.7,4300.6,1.5334]
[1760024519766,0.41838,4300.5,4300.4,3.2078]
[1760024520267,0.41842,4300.1,4300.0,10.72867995]
[1760024520868,0.41838,4300.6,4300.5,0.5788]
[1760024521071,0.41838,4300.6,4300.5,2.1122]
[1760024521463,0.186,4300.7,4300.6,1.95177]
[1760024521864,0.21,4301.4,4301.3,1.5334]
[1760024522068,0.41829,4301.5,4301.3,1.5334]
[1760024522768,1.04573,4301.5,4301.2,1.5334]
[1760024523070,0.41835,4300.8,4300.7,1.5334]
[1760024525569,0.5122,4300.7,4300.6,3.2078]
[1760024525772,0.41835,4300.8,4300.6,3.2078]
[1760024525968,0.41835,4300.8,4300.6,4.7412]
[1760024526177,0.41835,4300.8,4300.7,1.5334]
[1760024526370,0.65335,4300.9,4300.8,1.5334]
[1760024527073,0.235,4300.9,4300.8,1.5334]
[1760024527269,0.60418,4301.6,4301.5,2.1122]
[1760024527477,0.1859,4301.6,4301.5,2.53049]
[1760024527872,0.1859,4301.6,4301.5,2.1122]
[1760024528675,0.41827,4301.7,4301.6,1.5334]
[1760024528975,0.41833,4301.1,4301.0,0.5788]
[1760024529179,0.65333,4301.1,4301.0,0.5788]
[1760024529374,0.65333,4301.1,4301.0,2.1122]
[1760024529671,0.235,4302.1,4301.0,5.8138]
[1760024529973,3.62901011,4302.2,4302.1,1.5334]
[1760024530769,3.21079011,4302.2,4302.1,1.5334]
[1760024531077,0.00299011,4302.2,4302.1,1.5334]
[1760024531578,0.00299011,4302.2,4302.1,6.5334]
[1760024532373,0.00299011,4302.2,4302.1,6.7684]
[1760024532869,0.00299011,4302.2,4302.1,1.5334]
[1760024533470,0.00299011,4302.2,4302.1,1.05617]
[1760024533772,0.41828,4301.6,4301.5,0.5788]
[1760024534379,0.41833,4301.1,4301.0,0.5788]
[1760024535674,0.41833,4301.1,4301.0,1.9811]
[1760024536473,0.41833,4301.1,4301.0,1.4023]
[1760024536671,0.41836,4300.8,4300.6,1.4023]
[1760024536881,0.41837,4300.7,4300.6,1.4023]
[1760024537272,0.235,4301.4,4300.9,1.4023]
[1760024537572,0.41833,4301.1,4301.0,1.9873]
[1760024538269,0.41837,4300.6,4300.5,1.9811]
[1760024538679,0.41835,4300.9,4300.7,1.4023]
[1760024538879,0.235,4301.4,4301.0,0.585]
[1760024539074,0.235,4301.4,4301.1,1.4023]
[1760024539579,0.41831,4301.3,4301.1,1.4023]
[1760024539773,0.41833,4301.1,4301.0,1.9873]
[1760024540773,0.41831,4301.3,4301.0,1.9873]
[1760024540973,0.235,4301.4,4301.2,0.41832]
[1760024541176,3.4428,4302.1,4302.0,0.585]
[1760024541374,3.86103,4302.1,4302.0,1.9873]
[1760024541574,0.41828,4301.6,4301.5,0.585]
[1760024541878,0.41828,4301.6,4301.5,1.9873]
[1760024544070,3.4428,4302.1,4302.0,0.585]
[1760024544276,3.86103,4302.1,4302.0,1.9873]
[1760024545376,3.2078,4303.3,4302.6,1.4023]
[1760024545576,0.41817,4302.7,4302.6,1.4023]
[1760024546585,0.42028056,4302.7,4302.6,1.4023]
[1760024546880,0.41823,4302.1,4302.0,0.585]
[1760024547085,0.41823,4302.1,4302.0,1.9873]
[1760024548081,0.00211056,4302.7,4302.5,0.585]
[1760024548279,0.42028056,4302.7,4302.6,4.6101]
[1760024548981,0.00211056,4302.7,4302.6,4.6101]
[1760024551284,0.00211056,4302.7,4302.6,4.8451]
[1760024551484,0.17027056,4302.8,4302.6,4.8451]
[1760024551678,0.41816,4302.8,4302.7,1.4023]
[1760024552083,5.41816,4302.8,4302.7,1.4023]
[1760024552292,0.41823,4302.1,4302.0,1.9873]
[1760024552585,0.42015811,4302.1,4302.0,1.9873]
[1760024553294,0.00192811,4302.1,4302.0,7.64054]
[1760024553590,0.41813,4303.1,4303.0,1.9873]
[1760024554090,0.41823,4302.1,4302.0,0.585]
[1760024554391,0.41823,4302.1,4302.0,1.9873]
[1760024554685,0.42081706,4302.1,4302.0,1.9873]
[1760024555680,0.41828,4301.6,4301.5,1.9873]
[1760024555888,0.41833,4301.1,4301.0,1.9873]
[1760024556588,0.9449,4301.0,4300.2,1.4023]
[1760024556900,0.9449,4301.0,4300.1,4.6101]
[1760024556901,0.41841,4300.2,4300.1,4.6101]
[1760024559384,3.62621,4300.2,4300.1,1.4023]
[1760024559693,0.41841,4300.2,4300.1,1.4023]
[1760024562287,0.9449,4300.1,4300.0,8.61647995]
[1760024562888,3.62621,4300.2,4300.0,8.61647995]
[1760024563088,3.62621,4300.2,4300.0,10.04297995]
[1760024563290,0.9195,4300.1,4300.0,8.61647995]
[1760024563495,8.93842239,4300.1,4300.0,8.12744995]
[1760024563789,9.17342239,4300.1,4300.0,8.12744995]
[1760024563987,4.17342239,4300.1,4300.0,8.12744995]
[1760024564493,6.01432085,4300.1,4300.0,8.12744995]
[1760024565392,5.09482085,4300.1,4300.0,9.58754995]
[1760024565592,6.01502085,4300.1,4300.0,8.12744995]
[1760024566493,2.07589846,4300.1,4300.0,9.58754995]
[1760024566992,0.235,4300.1,4300.0,10.18764995]
[1760024568391,0.235,4300.1,4300.0,8.12744995]
[1760024568786,0.235,4300.1,4300.0,9.58754995]
[1760024568986,0.235,4300.1,4300.0,10.18764995]
[1760024572401,0.65342,4300.1,4300.0,10.18764995]
[1760024572902,0.65342,4300.1,4300.0,10.60607995]
[1760024573201,1.04576,4301.4,4300.1,1.4601]
[1760024573396,0.41841,4300.2,4300.1,1.4601]
[1760024573798,0.235,4300.4,4300.0,9.58754995]
[1760024573799,0.41842,4300.1,4300.0,9.58754995]
[1760024573997,0.41842,4300.1,4300.0,10.18764995]
[1760024574507,0.41842,4300.1,4300.0,8.72754995]
[1760024574904,0.41842,4300.1,4300.0,10.18764995]
[1760024575099,0.41841,4300.3,4300.1,1.4601]
[1760024575302,0.41841,4300.2,4300.1,1.4601]
[1760024575801,0.41841,4300.2,4300.1,1.87852]
[1760024576001,0.235,4300.4,4300.0,8.72754995]
[1760024576207,0.51032,4301.2,4301.1,1.4601]
[1760024577901,4.25346,4301.8,4301.5,0.6001]
[1760024578107,0.65327,4301.7,4301.6,1.4601]
[1760024579904,0.00258706,4302.1,4301.7,1.87836]
[1760024579905,0.41825,4301.9,4301.7,1.87836]
[1760024580108,0.41825,4301.9,4301.8,1.4601]
[1760024580798,0.41828,4301.6,4301.5,2.0602]
[1760024581704,0.235,4301.7,4301.5,0.6001]
[1760024582011,0.235,4301.7,4301.6,1.4601]
[1760024582903,0.00258706,4302.1,4301.6,1.4601]
[1760024583206,0.42081706,4302.1,4302.0,2.0602]
[1760024583414,0.41828,4301.6,4301.5,2.0602]
[1760024584212,0.65328,4301.6,4301.5,2.0602]
[1760024584511,1.33854,4300.9,4300.8,3.2078]
[1760024584712,1.57354,4300.9,4300.8,3.2078]
[1760024585210,1.57354,4300.9,4300.5,0.6001]
[1760024585211,0.41837,4300.6,4300.5,0.6001]
[1760024585408,0.41837,4300.6,4300.5,2.0602]
[1760024587107,0.41836,4300.7,4300.6,1.4601]
[1760024588008,3.2078,4301.4,4300.6,1.4601]
[1760024588213,0.41834,4301.0,4300.9,1.4601]
[1760024590016,0.41837,4300.6,4300.5,2.0602]
[1760024591717,0.41837,4300.6,4300.5,1.4601]
[1760024591910,0.41837,4300.6,4300.5,2.0602]
[1760024594726,0.41837,4300.6,4300.3,3.2078]
[1760024594727,0.41839,4300.4,4300.3,3.2078]
[1760024595326,0.41839,4300.4,4300.3,4.7111]
[1760024597025,0.41839,4300.4,4300.0,8.12744995]
[1760024597026,0.41842,4300.1,4300.0,8.12744995]
[1760024597232,1.52852,4300.1,4300.0,8.12744995]
[1760024598526,6.52852,4300.1,4300.0,7.14176652]
[1760024598830,0.4185,4299.3,4299.2,5.66e-06]
[1760024599030,0.41852,4299.1,4299.0,0.5894]
[1760024599731,0.41852,4299.1,4299.0,0.5919967]
[1760024599932,3.42032488,4299.1,4299.0,6.7e-06]
[1760024600134,8.42032488,4299.1,4299.0,6.7e-06]
[1760024601331,0.4186,4298.3,4298.2,1.5033]
[1760024601532,0.41862,4298.1,4298.0,2.0927]
[1760024602527,0.42136611,4298.1,4298.0,2.09482902]
[1760024603125,0.65636611,4298.1,4298.0,2.09482902]
[1760024603836,0.65636611,4298.1,4298.0,0.00212902]
[1760024604335,3.6413931,4298.1,4298.0,0.00212902]
[1760024605135,3.6413931,4298.1,4297.9,6.47e-06]
[1760024605933,3.4063931,4298.1,4298.0,2.0927]
[1760024606129,3.6413931,4298.1,4298.0,0.59230957]
[1760024606330,8.6413931,4298.1,4298.0,0.00290957]
[1760024606635,8.6413931,4298.1,4297.9,6.04e-06]
[1760024607137,5.0,4298.0,4297.9,6.04e-06]
[1760024607537,8.07583101,4298.0,4297.9,0.00265543]
[1760024608738,3.07583101,4298.0,4297.9,1.50595543]
[1760024609035,3.31083101,4298.0,4297.9,1.50595543]
[1760024609336,0.235,4298.0,4297.9,1.50595543]
[1760024609532,0.00274611,4298.1,4298.0,2.0927]
[1760024609834,0.23774611,4298.1,4298.0,2.0927]
[1760024612134,0.18377888,4299.4,4298.8,1.5033]
[1760024612336,0.41853,4299.0,4298.8,1.5033]
[1760024613137,3.21075993,4298.9,4298.8,1.5033]
[1760024613536,0.00295993,4298.9,4298.8,1.5033]
[1760024616340,0.41862,4298.1,4297.9,0.00265543]
[1760024616541,0.41862,4298.1,4297.5,0.5894]
[1760024616542,0.41867,4297.6,4297.5,0.5894]
[1760024616850,0.65367,4297.6,4297.5,0.5894]
[1760024617334,0.65367,4297.6,4297.0,41.3894]
[1760024617335,0.41871,4297.1,4297.0,0.5894]
[1760024617539,0.65371,4297.1,4297.0,0.59157411]
[1760024618447,0.65371,4297.1,4297.0,2.09487411]
[1760024619540,0.65371,4297.1,4297.0,0.00217411]
[1760024619741,0.65371,4297.1,4297.0,1.50547411]
[1760024620137,0.65371,4297.1,4297.0,2.09487411]
[1760024620548,0.65371,4297.1,4297.0,0.00217411]
[1760024620736,0.65371,4297.1,4297.0,2.09487411]
[1760024621154,0.65371,4297.1,4297.0,0.00217411]
[1760024621643,0.41871,4297.2,4297.1,1.5033]
[1760024621855,0.65371,4297.2,4297.1,1.5033]
[1760024622741,6.88384825,4297.2,4297.0,0.00217411]
[1760024623047,0.41878,4296.4,4296.3,0.435]
[1760024623241,0.41878,4296.4,4296.3,1.9278]
[1760024623242,0.65378,4296.4,4296.3,1.9278]
[1760024623946,0.65378,4296.4,4296.3,1.93067793]
[1760024624144,0.235,4296.4,4296.3,1.93067793]
[1760024624440,1.04665,4297.7,4296.7,0.41875]
[1760024624640,0.4187,4297.3,4297.1,1.4774]
[1760024624845,0.41871,4297.1,4297.0,2.0505]
[1760024625551,3.50558783,4297.1,4297.0,2.0505]
[1760024625849,0.41871,4297.1,4297.0,2.0505]
[1760024626651,0.41876,4296.6,4296.5,2.0392]
[1760024626850,0.235,4296.6,4296.5,2.0392]
[1760024629856,0.41877,4296.5,4296.3,3.64567793]
[1760024630156,0.235,4296.6,4294.9,3.2078]
[1760024630157,0.41886,4295.6,4294.9,3.2078]
[1760024630351,0.65386,4295.6,4295.1,40.8]
[1760024630755,0.65386,4295.6,4295.5,2.0668]
[1760024630954,0.42067094,4295.6,4295.5,2.06868944]
[1760024631149,0.65567094,4295.6,4295.5,2.06868944]
[1760024632348,0.00181094,4295.6,4295.5,2.06868944]
[1760024632555,0.00181094,4295.6,4295.5,7.06868944]
[1760024633356,0.60486,4296.7,4296.6,1.4774]
[1760024633660,0.83986,4296.7,4296.6,1.4774]
[1760024633844,0.41877,4296.5,4296.4,3.2078]
[1760024634050,0.41877,4296.5,4296.4,1.4774]
[1760024634257,0.42052244,4296.5,4296.4,1.4774]
[1760024635255,0.4174,4295.5,4295.0,56.42607785]
[1760024635458,3.62671,4295.1,4295.0,56.42607785]
[1760024635657,5.91872048,4295.1,4295.0,55.26210965]
[1760024635855,5.91872048,4295.1,4295.0,54.09814145]
[1760024636052,5.91872048,4295.1,4295.0,52.93417325]
[1760024636250,5.91872048,4295.1,4295.0,51.77269945]
[1760024636452,5.91872048,4295.1,4295.0,49.52190125]
[1760024636655,5.91872048,4295.1,4295.0,49.00237125]
[1760024636855,6.10253922,4295.1,4295.0,48.49875125]
[1760024637558,14.19246439,4295.1,4295.0,46.73273125]
[1760024637753,12.68616439,4295.1,4295.0,41.53471125]
[1760024637960,7.68616439,4295.1,4295.0,43.58521125]
[1760024638556,3.86171,4295.1,4295.0,43.58521125]
[1760024639656,3.2078,4295.1,4295.0,48.58521125]
[1760024639863,0.41888,4295.5,4295.1,1.4774]
[1760024640155,0.41891,4295.1,4295.0,41.63593125]
[1760024640459,7.37873339,4295.1,4295.0,40.04318125]
[1760024640666,12.37873339,4295.1,4295.0,39.49737125]
[1760024640854,12.37873339,4295.1,4295.0,38.11903125]
[1760024641159,12.37873339,4295.1,4295.0,37.45532125]
[1760024641453,12.37873339,4295.1,4295.0,36.29430125]
[1760024641660,12.37873339,4295.1,4295.0,35.66358125]
[1760024641853,12.37873339,4295.1,4295.0,34.29629125]
[1760024642258,12.37873339,4295.1,4295.0,33.09577125]
[1760024642760,7.37873339,4295.1,4295.0,34.51811125]
[1760024643859,7.37873339,4295.1,4295.0,33.29305125]
[1760024644054,7.37873339,4295.1,4295.0,32.70466125]
[1760024644359,7.37873339,4295.1,4295.0,31.28530125]
[1760024644758,3.75714304,4295.1,4295.0,36.52030125]
[1760024645055,3.2078,4295.1,4295.0,36.52030125]
[1760024646062,0.60509,4295.3,4295.0,35.04290125]
[1760024646258,0.1862,4295.3,4295.2,1.4774]
[1760024646454,3.2078,4295.8,4295.5,0.5731]
[1760024646654,0.4188,4296.2,4296.1,1.4774]
[1760024646959,0.4188,4296.2,4296.1,1.7124]
[1760024648167,3.6266,4296.3,4296.1,1.7124]
[1760024648367,3.6266,4296.3,4296.2,0.235]
[1760024648557,3.6266,4296.3,4296.2,1.7124]
[1760024648960,0.00175244,4296.5,4296.3,1.4774]
[1760024648961,0.42053244,4296.5,4296.3,1.4774]
[1760024649163,0.42053244,4296.5,4296.4,1.7124]
[1760024649661,0.00175244,4296.5,4296.4,6.7124]
[1760024650264,0.4187,4297.2,4297.1,1.4774]
[1760024650453,0.4187,4297.2,4297.1,1.7124]
[1760024650657,0.4187,4297.2,4297.1,6.7124]
[1760024650966,0.41865,4297.8,4297.6,1.4774]
[1760024651262,0.41867,4297.6,4297.5,0.5731]
[1760024651460,0.4187,4297.3,4297.1,40.8]
[1760024651660,0.41874,4296.8,4296.7,1.4774]
[1760024651862,0.41874,4296.8,4296.7,1.7124]
[1760024652260,0.41874,4296.8,4296.7,42.2774]
[1760024652765,0.41874,4296.8,4296.7,42.5124]
[1760024652961,0.235,4297.7,4296.8,1.4141]
[1760024653171,0.41871,4297.1,4297.0,2.152]
[1760024653664,0.41876,4296.6,4296.4,1.4141]
[1760024653857,0.41876,4296.6,4296.5,2.2222]
[1760024654059,3.2078,4297.3,4296.5,0.8081]
[1760024654263,0.41875,4296.8,4296.6,1.4141]
[1760024654461,0.41875,4296.8,4296.7,1.4141]
[1760024654773,0.41875,4296.8,4296.7,1.6491]
[1760024655264,0.41875,4296.8,4296.7,1.4141]
[1760024655465,0.41875,4296.8,4296.7,1.6491]
[1760024655768,0.41875,4296.8,4296.7,1.4141]
[1760024656070,0.41875,4296.8,4296.7,1.6491]
[1760024656970,1.04672,4297.5,4296.7,1.6491]
[1760024657170,0.41874,4296.9,4296.7,1.6491]
[1760024657862,0.41867,4297.6,4297.5,0.7379]
[1760024658063,0.41867,4297.6,4297.5,2.152]
[1760024658268,0.41867,4297.6,4297.5,2.387]
[1760024658471,0.41867,4297.6,4297.5,2.152]
[1760024658667,0.41871,4297.1,4297.0,2.152]
[1760024658872,0.41871,4297.1,4297.0,2.387]
[1760024659369,0.41871,4297.1,4297.0,2.152]
[1760024659570,0.41876,4296.6,4296.5,5.3598]
[1760024659870,0.41876,4296.6,4296.5,5.5948]
[1760024661772,1.87666,4296.6,4296.5,1.4141]
[1760024662075,0.41876,4296.6,4296.5,1.6491]
[1760024662471,0.41876,4296.6,4296.5,2.387]
[1760024664166,0.41879,4296.3,4296.2,1.4141]
[1760024664477,0.41879,4296.3,4296.2,1.6491]
[1760024665666,0.41879,4296.3,4296.2,1.4141]
[1760024665968,1.04684,4297.0,4296.2,1.6491]
[1760024666174,0.41876,4296.6,4296.5,0.7379]
[1760024666374,0.41876,4296.6,4296.5,2.152]
[1760024666574,0.41876,4296.6,4296.5,2.387]
[1760024667374,0.41876,4296.6,4296.5,2.152]
[1760024668471,0.41876,4296.6,4296.5,2.387]
[1760024670875,0.41872,4297.1,4297.0,0.7379]
[1760024671075,0.41872,4297.1,4297.0,2.387]
[1760024671271,0.41872,4297.1,4297.0,2.152]
[1760024671673,0.41872,4297.1,4297.0,2.387]
[1760024673677,0.41872,4297.1,4297.0,2.152]
[1760024673874,0.41872,4297.1,4297.0,1.4141]
[1760024674179,1.87662,4297.1,4297.0,1.6491]
[1760024674876,0.41872,4297.1,4297.0,1.4141]
[1760024675073,1.87662,4297.1,4297.0,1.6491]
[1760024675373,1.87663,4296.9,4296.8,3.2078]
[1760024675771,0.41876,4296.6,4296.5,2.387]
[1760024676779,0.41875,4296.7,4296.6,1.4141]
[1760024677983,0.41875,4296.7,4296.6,1.6491]
[1760024678780,0.1861,4297.2,4297.0,0.7379]
[1760024678985,0.41871,4297.1,4297.0,2.152]
[1760024679481,0.41871,4297.1,4297.0,2.387]
[1760024679981,1.87661,4297.1,4297.0,1.4141]
[1760024680283,1.87661,4297.1,4297.0,0.235]
[1760024680782,0.41876,4296.6,4296.5,2.152]
[1760024680983,0.41876,4296.6,4296.5,2.387]
[1760024681775,0.41876,4296.6,4296.5,2.152]
[1760024681976,1.87666,4296.6,4296.5,1.4141]
[1760024682177,0.41879,4296.3,4296.2,3.2078]
[1760024682383,0.41879,4296.3,4296.2,3.4428]
[1760024682779,0.41879,4296.3,4296.2,4.8759]
[1760024682971,2.16159,4296.3,4296.2,5.1109]
[1760024683186,0.41879,4296.3,4296.2,4.8759]
[1760024683483,0.41879,4296.3,4296.2,5.1109]
[1760024686281,0.41879,4296.3,4296.2,7.4265]
[1760024687081,3.62653,4296.9,4296.8,4.0662]
[1760024687277,3.62653,4296.9,4296.8,4.3012]
[1760024687489,3.62653,4296.9,4296.8,4.0662]
[1760024687677,0.41873,4296.9,4296.8,4.3012]
[1760024688081,0.41873,4296.9,4296.8,4.0662]
[1760024688279,0.41873,4296.9,4296.8,1.9856]
[1760024688680,0.41873,4296.9,4296.8,5.1934]
[1760024689680,0.41873,4296.9,4296.8,4.9584]
[1760024690286,0.41873,4296.9,4296.8,5.1934]
[1760024690481,0.41873,4296.9,4296.8,4.9584]
[1760024690687,0.41876,4296.6,4296.5,0.6797]
[1760024690883,0.41876,4296.6,4296.5,0.235]
[1760024691682,0.41878,4296.4,4296.3,3.2078]
[1760024691883,0.41878,4296.4,4296.3,3.4428]
[1760024692486,2.09488,4296.4,4296.3,3.2078]
[1760024692694,0.41886,4295.6,4295.5,2.4885]
[1760024692893,0.41886,4295.6,4295.5,5.6963]
[1760024693083,1.04696,4296.4,4295.5,44.9807]
[1760024693394,0.41884,4295.8,4295.6,1.9856]
[1760024693695,0.41884,4295.8,4295.7,0.235]
[1760024693992,0.41884,4295.8,4295.7,1.9856]
[1760024694380,0.41886,4295.6,4295.5,4.9584]
[1760024694594,0.41886,4295.6,4295.5,5.1934]
[1760024694893,0.41886,4295.6,4295.5,5.8731]
[1760024695489,1.04718,4295.6,4295.2,1.7506]
[1760024695687,0.41889,4295.3,4295.2,1.7506]
[1760024695891,0.41889,4295.3,4295.2,1.9856]
[1760024696086,0.41889,4295.3,4295.2,1.7506]
[1760024696494,0.41889,4295.3,4295.2,1.9856]
[1760024697390,0.41881,4296.1,4296.0,0.6797]
[1760024697693,0.41881,4296.1,4296.0,0.9147]
[1760024697892,0.41881,4296.1,4296.0,2.6653]
[1760024698093,0.41881,4296.2,4296.1,1.7506]
[1760024698287,0.41881,4296.2,4296.1,1.9856]
[1760024698485,0.41876,4296.7,4296.5,0.6797]
[1760024698688,0.41876,4296.7,4296.6,1.9856]
[1760024699994,0.41875,4296.8,4296.7,1.7506]
[1760024700588,0.41875,4296.8,4296.7,1.9856]
[1760024700997,0.41875,4296.8,4296.7,1.7506]
[1760024701692,0.41875,4296.8,4296.7,1.9856]
[1760024701994,0.1861,4297.2,4297.1,1.7506]
[1760024702194,0.1861,4297.2,4297.1,5.1934]
[1760024702387,1.0465,4298.4,4297.6,2.16926]
[1760024702593,0.41861,4298.2,4297.7,5.1934]
[1760024702789,0.41862,4298.1,4297.7,5.1934]
[1760024702999,0.41864,4297.9,4297.7,5.1934]
[1760024703200,0.41864,4297.9,4297.7,45.9934]
[1760024703797,0.41864,4297.9,4297.7,45.7584]
[1760024704093,0.41864,4297.9,4297.7,42.7856]
[1760024704289,0.41864,4297.9,4297.7,42.5506]
[1760024704488,0.41864,4297.9,4297.7,42.7856]
[1760024705891,4.25434,4298.2,4297.6,1.7506]
[1760024706195,0.41866,4297.7,4297.6,1.9856]
[1760024706402,2.09476,4297.7,4297.6,0.235]
[1760024706606,0.41869,4297.4,4297.3,1.7506]
[1760024706792,0.00179525,4297.8,4297.3,0.235]
[1760024706994,0.00179525,4297.8,4297.6,2.16926]
[1760024707192,0.1861,4298.1,4298.0,2.4303]
[1760024707495,2.28082,4298.1,4298.0,1.7506]
[1760024707800,1.6761,4297.4,4296.5,2.4303]
[1760024708106,0.41875,4296.7,4296.6,1.7506]
[1760024708595,0.41875,4296.7,4296.3,3.2078]
[1760024708596,2.09488,4296.4,4296.3,3.2078]
[1760024708802,0.00244736,4297.4,4296.5,0.6797]
[1760024708990,0.41875,4296.7,4296.6,1.7506]
[1760024709297,2.09485,4296.7,4296.6,1.7506]
[1760024709601,2.09485,4296.7,4296.6,1.9856]
[1760024709994,0.41875,4296.7,4296.6,1.7506]
[1760024710691,0.41878,4296.4,4296.3,3.2078]
[1760024710892,2.09488,4296.4,4296.3,3.2078]
[1760024711405,0.41883,4296.0,4295.8,0.235]
[1760024711598,0.41882,4296.0,4295.9,1.7506]
[1760024711898,3.2078,4296.4,4296.0,0.6797]
[1760024712194,0.41878,4296.5,4296.3,1.7506]
[1760024712496,3.2078,4296.9,4296.6,1.6454]
[1760024712701,0.41873,4297.0,4296.8,1.6454]
[1760024712893,3.21024736,4297.4,4297.0,0.7137]
[1760024713098,0.00244736,4297.4,4297.2,1.6454]
[1760024713299,0.00244736,4297.4,4297.3,1.8804]
[1760024714298,0.00244736,4297.4,4297.3,5.0882]
[1760024714495,0.00244736,4297.4,4297.3,10.5069]
[1760024714697,0.00244736,4297.4,4297.3,4.8532]
[1760024715199,0.00244736,4297.4,4297.3,5.0892]
[1760024715396,0.00244736,4297.4,4297.3,4.8532]
[1760024715897,0.00244736,4297.4,4297.3,5.0892]
[1760024717904,0.00244736,4297.4,4297.3,10.0892]
[1760024718407,0.00244736,4297.4,4297.3,5.0892]
[1760024718902,0.41868,4297.5,4297.3,5.0892]
[1760024718903,0.1861,4297.7,4297.5,0.7137]
[1760024719211,0.41857,4298.6,4298.5,2.3591]
[1760024719402,0.41857,4298.6,4298.5,2.5951]
[1760024719602,0.41857,4298.6,4298.5,43.1591]
[1760024720002,0.42144106,4298.6,4298.5,43.39679569]
[1760024720302,0.41852,4299.1,4298.6,1.6454]
[1760024720508,3.2078,4299.6,4299.0,0.7137]
[1760024720801,0.41852,4299.1,4299.0,2.3591]
[1760024721002,0.41852,4299.1,4299.0,2.5951]
[1760024721199,0.41857,4298.6,4298.5,40.80169569]
[1760024721506,0.41857,4298.6,4298.5,41.75139569]
[1760024721809,0.00278949,4299.1,4299.0,2.3591]
[1760024722007,0.186,4299.4,4299.1,1.6454]
[1760024722209,0.186,4299.4,4299.0,3.9215]
[1760024722210,0.186,4299.4,4299.2,0.237]
[1760024722405,0.186,4299.4,4299.0,0.7137]
[1760024722605,0.41851,4299.2,4299.1,41.037]
[1760024722908,0.41851,4299.2,4299.1,42.6824]
[1760024723109,0.42083061,4299.2,4299.1,1.8824]
[1760024723505,0.60449,4299.4,4299.1,1.8824]
[1760024723802,4.25377,4300.6,4299.6,1.6454]
[1760024723803,0.41846,4299.8,4299.6,1.6454]
[1760024724005,0.41846,4299.8,4299.7,1.8824]
[1760024724598,0.41843,4300.0,4299.8,1.6454]
[1760024724803,3.2078,4300.6,4299.9,0.237]
[1760024725110,3.2078,4300.6,4300.0,2.5961]
[1760024725111,0.41842,4300.1,4300.0,2.5961]
[1760024725308,0.41842,4300.1,4300.0,2.3591]
[1760024725514,0.00205398,4300.1,4300.0,2.3591]
[1760024725814,0.00205398,4300.1,4300.0,2.5961]
[1760024726001,0.00205398,4300.1,4300.0,2.3591]
[1760024726610,0.00205398,4300.1,4300.0,7.5951]
[1760024726805,0.41836,4300.8,4300.3,2.0638]
[1760024727006,0.41837,4300.7,4300.5,3.9215]
[1760024727211,0.41837,4300.7,4300.6,1.8814]
[1760024727511,0.41837,4300.7,4300.6,1.6454]
[1760024727699,0.42070024,4300.7,4300.6,1.6454]
[1760024728102,0.00233024,4300.7,4300.6,1.6454]
[1760024729005,0.00233024,4300.7,4300.6,1.8824]
[1760024729606,0.00233024,4300.7,4300.6,2.30077]
[1760024730114,0.41832,4301.2,4301.0,1.13203]
[1760024730410,3.62608,4301.6,4301.5,2.3591]
[1760024730711,3.62608,4301.6,4301.5,1.6454]
[1760024730922,5.44098,4301.6,4301.5,1.6454]
[1760024731208,3.62851999,4301.6,4301.5,1.6454]
[1760024731716,5.44341999,4301.6,4301.5,1.6454]
[1760024731911,3.62851999,4301.6,4301.5,1.6454]
[1760024732118,3.62851999,4301.6,4301.5,2.3591]
[1760024732517,10.44341999,4301.6,4301.5,1.6454]
[1760024732715,10.44341999,4301.6,4301.0,0.7137]
[1760024732716,0.41833,4301.1,4301.0,0.9507]
[1760024733208,0.41832,4301.2,4301.1,1.6454]
[1760024734010,3.62851999,4301.6,4301.5,2.3591]
[1760024735212,0.41833,4301.1,4301.0,5.5669]
[1760024735420,0.41833,4301.1,4301.0,2.3591]
[1760024735718,0.41833,4301.1,4301.0,2.5951]
[1760024736319,3.21023999,4301.6,4301.1,1.6454]
[1760024736320,0.41831,4301.3,4301.1,1.6454]
[1760024736620,0.41831,4301.3,4301.2,1.8814]
[1760024736823,0.42071999,4301.6,4301.5,2.3591]
[1760024737128,0.00243999,4301.6,4301.5,2.3591]
[1760024737923,0.00243999,4301.6,4301.5,2.5951]
[1760024739016,1.0455,4302.5,4301.5,2.5951]
[1760024739017,1.8149,4303.0,4302.1,1.6454]
[1760024739221,1.8149,4303.0,4302.0,0.7137]
[1760024739222,0.6041,4302.4,4302.3,1.6454]
[1760024739422,0.4182,4302.4,4302.3,1.6454]
[1760024740024,0.41817,4302.7,4302.6,1.6454]
[1760024740225,0.41987986,4302.7,4302.6,1.6454]
[1760024740619,0.41987986,4302.7,4302.6,1.8814]